[Event "Saint Louis Norm Congress-IM 2022"]
[Site "Saint Louis"]
[Date "2022.05.23"]
[Round "8.3"]
[White "Lee, Alice"]
[Black "Rodriguez Rivera, Pedro"]
[Result "1/2-1/2"]
[ECO "A40"]
[WhiteElo "2344"]
[BlackElo "2197"]
[Annotator "TA"]
[PlyCount "145"]
[EventDate "2022.05.20"]
[EventType "tourn"]
[EventCountry "USA"]
[SourceTitle "playchess.com"]
[Source "ChessBase"]
[SourceQuality "1"]
[TimeControl "5400+30"]

{[%evp 9,145,67,67,55,56,43,76,66,76,54,55,59,71,54,56,56,52,57,81,64,96,41,37,13,14,0,0,-8,-13,-10,5,23,37,-83,-74,-103,-104,-102,-64,-120,-121,-141,-50,-58,-58,-45,-42,-61,-37,-148,-115,-98,-86,-76,-66,-107,-75,-58,-69,-75,-76,-63,-50,-50,-33,-92,-92,-88,-88,-100,-79,-87,-83,-181,-181,-1288,-520,-750,-539,-737,0,-686,0,-703,-570,-706,-703,-745,-748,-747,-718,-1013,-927,-29976,-1212,-1231,-889,-641,-482,-479,-386,-467,-435,-403,-384,-621,-384,-372,-368,-347,-236,-222,-145,-269,-239,-240,-214,-173,-22,-29,-8,-8,-8,-8,-8,-51,0,0,0,-8,-8,-8,0,0,0,0,0,0]} 1. d4 {[%emt 0:00:03]} b6 {[%emt 0:00:33]} 2. c4 {[%emt 0:00:10]} Bb7 {[%emt 0:00:09]} 3. Nc3 {[%emt 0:00:20]} g6 {[%emt 0:00:05]} 4. e4 {[%emt 0:00:27]} d6 {[%emt 0:00:06]} 5. Nf3 {[%emt 0:01:32]} Bg7 {[%emt 0:00:05]} 6. Qc2 {[%emt 0:08:57] A40: Unusual replies to 1 d4.} Nd7 {[%emt 0:00:15]} 7. Be2 {[%emt 0:01:14]} Ngf6 {[%emt 0:04:30]} 8. O-O {[%emt 0:02:21] White is better.} c5 {[%emt 0:03:25] [#]} 9. Rd1 $146 {[%emt 0:05:03]} (9. e5 {is interesting.} Nh5 10. e6 cxd4 11. Ng5) ({Predecessor:} 9. d5 a6 10. h3 Qc7 11. Bf4 Nh5 12. Bh2 O-O 13. Nd2 e5 14. dxe6 fxe6 15. Bxh5 gxh5 {1-0 (38) Talik,P (1946)-Mazur,B (1703) Katowice 2020}) 9... cxd4 {[%emt 0:03:54]} 10. Nxd4 {[%emt 0:00:17]} O-O {[%emt 0:00:15]} 11. Be3 {[%emt 0:03:18] White is more active.} Rc8 {[%emt 0:04:10]} 12. f3 {[%emt 0:01:45]} a6 {[%emt 0:07:00]} 13. Rac1 {[%emt 0:05:59]} Qc7 {[%emt 0:05:07]} 14. b4 {[%emt 0:05:50]} e6 {[%emt 0:02:38]} 15. Qb3 {[%emt 0:02:44]} (15. Nb3 $16) 15... Qb8 $14 {[%emt 0:03:28]} 16. g3 {[%emt 0:11:43]} Rfe8 {[%emt 0:01:13][%cal Od6d5]} 17. Kf2 {[%emt 0:15:20]} Qa8 {[%emt 0:08:10]} 18. Na4 {[%emt 0:02:30]} d5 {[%emt 0:06:44]} 19. exd5 {[%emt 0:01:11]} exd5 {[%emt 0:02:39]} 20. c5 {[%emt 0:00:43]} b5 {[%emt 0:00:59]} 21. Nb6 {[%emt 0:02:58]} (21. Nc3 $1 $14 {keeps the upper hand.}) 21... Nxb6 $17 {[%emt 0:00:18]} 22. cxb6 {[%emt 0:00:02]} Nd7 {[%emt 0:06:10]} 23. Rxc8 {[%emt 0:07:45]} Rxc8 {[%emt 0:03:02]} 24. h4 {[%emt 0:03:02]} ({Better is} 24. Qb1 $15) 24... Nxb6 {[%emt 0:11:46]} 25. Nxb5 {[%emt 0:00:47]} Nc4 {[%emt 0:00:39]} (25... axb5 $17 26. Bxb6 Rc3) 26. Nd4 $15 {[%emt 0:00:35]} Nxe3 {[%emt 0:00:14]} 27. Qxe3 {[%emt 0:00:17]} Re8 {[%emt 0:00:05]} 28. Qd3 {[%emt 0:01:31]} Qa7 {[%emt 0:01:52]} (28... Qb8 {is more complex.} 29. Qd2 Qc7 30. h5 Bf6) 29. Kf1 {[%emt 0:01:26]} (29. Bf1 $15) 29... Qb6 {[%emt 0:00:47]} 30. a3 {[%emt 0:01:17]} Qd6 {[%emt 0:01:54]} 31. Kf2 {[%emt 0:01:09]} Bc8 {[%emt 0:03:19]} 32. f4 {[%emt 0:02:15]} Qb6 {[%emt 0:02:36]} 33. Bf3 {[%emt 0:02:22]} Bf5 {[%emt 0:00:48] This bishop pair is nice.} 34. Qc3 {[%emt 0:00:54]} Rc8 $1 {[%emt 0:03:30] Inhibits Qc5.} 35. Qe3 {[%emt 0:00:01]} Be4 $36 {[%emt 0:01:48][%mdl 2048] Black is pushing.} 36. Bxe4 {[%emt 0:00:57]} dxe4 {[%emt 0:00:37]} 37. Ne2 {[%emt 0:00:49]} ({Avoid the trap} 37. Qxe4 $2 Rd8 38. Kg2 Bxd4 $19) (37. Rd2 $1 $15) 37... Qe6 $17 {[%emt 0:00:49]} 38. Kg2 {[%emt 0:00:41]} h5 {[%emt 0:01:28]} 39. Rd2 {[%emt 0:00:41] Against Rc2} Rc4 {[%emt 0:01:32]} 40. Rd8+ {[%emt 0:01:08]} Kh7 {[%emt 0:00:29]} 41. Rd1 {[%emt 0:00:44]} (41. Qb3 $17) 41... Rc2 $19 {[%emt 0:00:54]} 42. Rc1 $2 {[%emt 0:01:31] [#]} (42. Rd2 Rxd2 43. Qxd2) 42... Rb2 {[%emt 0:00:47]} (42... Bd4 $142 $1 {[%mdl 512]} 43. f5 (43. Qf2 Bxf2) 43... Qxf5 $1) 43. Rf1 {[%emt 0:01:51]} Rb3 {[%emt 0:02:21]} 44. Qc5 {[%emt 0:00:20]} Rb2 {[%emt 0:03:34]} 45. Qe3 {[%emt 0:00:35]} Rb3 {[%emt 0:01:26][%cal Bb2b3,Bb3a3,Ba3a2][%mdl 32]} 46. Qc5 {[%emt 0:00:06]} Rxa3 {[%emt 0:00:19]} 47. f5 {[%emt 0:02:25]} Qa2 {[%emt 0:00:45]} 48. fxg6+ {[%emt 0:00:03]} fxg6 {[%emt 0:00:08]} 49. Re1 {[%emt 0:00:08]} Qb3 {[%emt 0:00:30]} 50. Kg1 {[%emt 0:01:43]} Ra2 {[%emt 0:01:07][%cal Oa2e2] And now ...Rxe2! would win.} 51. g4 {[%emt 0:01:18] [#]} Qf3 {[%emt 0:01:12]} (51... Rxe2 $142 $1 {[%mdl 512]} 52. Rxe2 Qd1+ 53. Kf2 Bd4+ 54. Qxd4 Qxd4+ 55. Kg3 Qd3+ 56. Kf2 hxg4 57. Ke1 e3 58. Rh2 g3 59. Rg2 Qd5 60. Ke2 Qxg2+ 61. Kxe3 Qa2 62. Kf3 g2 63. Ke4 g1=Q 64. Ke5 Qe3+ 65. Kd6 Qae6+ 66. Kc7 Q3b6#) 52. gxh5 {[%emt 0:00:33]} Qg4+ {[%emt 0:01:12]} 53. Kf1 {[%emt 0:00:07]} gxh5 {[%emt 0:00:32]} 54. Qe3 {[%emt 0:02:08] Against Qh3+} Rb2 {[%emt 0:00:45]} ({Don't blunder} 54... Qxh4 $2 55. Qg3 Qf6+ 56. Nf4 $19) 55. Rd1 {[%emt 0:01:28]} Rxb4 {[%emt 0:00:59]} 56. Qf4 {[%emt 0:00:35]} Qh3+ {[%emt 0:00:19]} 57. Kf2 $2 {[%emt 0:00:16]} (57. Kg1) 57... e3+ {[%emt 0:01:16]} 58. Qxe3 {[%emt 0:00:01]} Qxh4+ {[%emt 0:00:17]} 59. Qg3 {[%emt 0:00:17]} Qf6+ {[%emt 0:00:28]} 60. Qf3 {[%emt 0:00:25]} Qb6+ {[%emt 0:00:43]} 61. Qe3 {[%emt 0:00:26]} (61. Kf1 $17 {keeps fighting.}) 61... Qg6 {[%emt 0:01:00]} 62. Qd3 {[%emt 0:00:49]} Qxd3 {[%emt 0:00:52]} 63. Rxd3 {[%emt 0:00:01][%mdl 4096] Endgame KRB-KRN} a5 $2 {[%emt 0:00:11]} (63... Ra4 $19 {Strongly threatening ...a5.} 64. Kf3 h4) 64. Rd5 $11 {[%emt 0:00:21][%csl LRa5,LRh5]} a4 {[%emt 0:00:19] aiming for ...h4.} 65. Rxh5+ {[%emt 0:00:03]} Kg6 {[%emt 0:00:01]} 66. Ra5 {[%emt 0:00:30]} Bb2 {[%emt 0:00:05]} 67. Ke3 {[%emt 0:00:49]} a3 {[%emt 0:00:16]} ({Black should play} 67... Kf6 $15) 68. Nf4+ {[%emt 0:01:04] The position is equal.} Kf7 {[%emt 0:00:15] ...Bc1+ is the strong threat.} 69. Ra7+ {[%emt 0:00:40]} Ke8 {[%emt 0:00:16] ( -> ...Bd4+)} 70. Nd3 {[%emt 0:00:21]} Rb5 {[%emt 0:00:43]} 71. Kd2 {[%emt 0:00:09]} Kd8 {[%emt 0:00:15]} 72. Kc2 {[%emt 0:00:09]} Kc8 {[%emt 0:00:03]} 73. Nxb2 {[%emt 0:00:07] White happily takes the draw.  Weighted Error Value: White=0.60/Black=0.65} 1/2-1/2

[Event "Saint Louis Norm Congress-IM 2022"]
[Site "Saint Louis"]
[Date "2022.05.23"]
[Round "8.4"]
[White "Yu, Jennifer"]
[Black "Proleiko, Julian"]
[Result "1-0"]
[ECO "A18"]
[WhiteElo "2257"]
[BlackElo "2204"]
[Annotator "TA"]
[PlyCount "67"]
[EventDate "2022.05.20"]
[EventType "tourn"]
[EventCountry "USA"]
[SourceTitle "playchess.com"]
[Source "ChessBase"]
[SourceQuality "1"]
[TimeControl "5400+30"]

{[%evp 9,67,8,14,-9,113,113,117,123,166,123,260,268,262,146,417,406,410,408,431,298,322,297,299,289,280,306,295,294,292,299,307,291,330,302,431,412,420,329,415,404,621,583,526,579,788,208,221,0,0,0,460,445,1964,752,29991,29992,29996,29997,29997,29998]} 1. c4 {[%emt 0:09:52]} Nf6 {[%emt 0:00:11]} 2. Nc3 {[%emt 0:00:45]} e6 {[%emt 0:00:06]} 3. e4 {[%emt 0:01:28]} d5 {[%emt 0:00:06]} 4. cxd5 {[%emt 0:00:03]} exd5 {[%emt 0:00:06]} 5. e5 {[%emt 0:00:03]} Ne4 {[%emt 0:00:09]} 6. d4 {[%emt 0:00:12][%cal Bd2d4,Bd4d5,Bd5d6][%mdl 32] A18: English Opening: Flohr-Mikenas System (1 c4 Nf6 2 Nc3 e6 3 e4).} c5 {[%emt 0:01:48]} (6... Bb4 $11 7. Bd2 Nc6) 7. Nxe4 $16 {[%emt 0:08:49]} dxe4 {[%emt 0:00:07]} 8. d5 {[%emt 0:00:02] White is better.} Nd7 {[%emt 0:00:51]} 9. Qa4 {[%emt 0:03:54] Hoping for e6.} Qe7 {[%emt 0:00:38] Against e6} (9... Qb6 $16) 10. f4 $1 $18 {[%emt 0:06:39] [#]} g6 $146 {[%emt 0:01:41]} ({Predecessor:} 10... g5 11. Qxe4 Nf6 12. Bb5+ Bd7 13. Bxd7+ Nxd7 14. Nf3 O-O-O 15. Be3 g4 16. Nd2 Kb8 {1-0 (26) Percivaldi,M (2391)-Tifferet,S (2224) New Delhi 2019}) 11. Bc4 {[%emt 0:07:27]} ({Better is} 11. Qxe4 $18 {Strongly threatening d6.} Bg7 12. d6) 11... a6 $2 {[%emt 0:02:34][%mdl 8192]} (11... Bg7 $16) 12. d6 {[%emt 0:02:52]} Qh4+ {[%emt 0:00:21]} 13. g3 {[%emt 0:00:01]} Qh5 {[%emt 0:05:07]} 14. h3 {[%emt 0:10:20]} Rb8 {[%emt 0:02:33]} 15. Qb3 {[%emt 0:07:11]} g5 {[%emt 0:00:42]} 16. g4 {[%emt 0:00:03]} Qg6 {[%emt 0:02:33]} 17. f5 {[%emt 0:00:11]} Qg7 {[%emt 0:00:06]} 18. e6 {[%emt 0:01:32]} fxe6 {[%emt 0:01:22]} 19. fxe6 {[%emt 0:00:03]} Bxd6 {[%emt 0:00:28] ...Ne5 is the strong threat.} 20. exd7+ {[%emt 0:00:05]} Bxd7 {[%emt 0:00:07]} 21. Ne2 {[%emt 0:09:02]} h5 {[%emt 0:00:57]} (21... Rf8 $142 22. Be6 (22. Qe3 h6 $18) 22... Rd8) 22. gxh5 {[%emt 0:03:00]} Rxh5 {[%emt 0:00:39]} 23. Be6 {[%emt 0:00:08]} Bb5 {[%emt 0:02:02]} 24. Ng3 {[%emt 0:08:26]} Bxg3+ {[%emt 0:01:08]} (24... Rh7 $142 25. Bf5 c4) 25. Qxg3 {[%emt 0:00:03]} Rd8 {[%emt 0:00:10]} 26. Bg4 {[%emt 0:03:55]} Rh6 {[%emt 0:00:07] [#]} 27. Qc3 $2 {[%emt 0:02:16]} (27. Qe3 Rd5 28. a4 (28. Qxe4+ $2 Re5 $19) 28... Bd7 $18) (27. Bxg5 $1 {[%mdl 512]} Qxb2 (27... Rdd6 28. Bxh6) 28. Rd1 Rxd1+ 29. Bxd1) 27... Qc7 {[%emt 0:02:08] [#] And now ...Rd3 would win.} 28. Bxg5 $2 {[%emt 0:09:02]} (28. Qe3 $1 $18) 28... Rd3 $11 {[%emt 0:00:04]} 29. Qc2 {[%emt 0:00:37]} ({Don't go for} 29. Qxd3 $2 Bxd3 30. O-O-O (30. Bxh6 $2 Qg3+ 31. Kd2 Qf2+ 32. Kd1 Qc2+ 33. Ke1 Qg2 $19) 30... Rb6 31. Bh5+ Kf8 32. Rxd3 exd3 $19) 29... e3 $2 {[%emt 0:00:33][%mdl 8192]} 30. O-O $18 {[%emt 0:00:10]} (30. Bxh6 $2 {leads to mate.} Qg3+ 31. Kf1 Rd1#) 30... Bc6 {[%emt 0:02:17] Against Rf3} (30... Qg3+ $142 31. Qg2 Qxg2+ 32. Kxg2 Bc6+ 33. Kg1 Rd2 34. Rf8+ (34. Bxh6 Rg2+ 35. Kh1 Rxg4+ 36. Kh2 Rg2+ 37. Kh1 Rxb2+ 38. Kg1 Rg2+ 39. Kh1 Rxa2+ 40. Kg1 Rg2+ 41. Kh1 Rg6+ 42. Kh2 Rg2+ 43. Kh1 Rg6+ 44. Kh2 Rxh6 $17) 34... Kxf8 35. Bxh6+ Kf7 36. Bxe3 Rxb2 37. Bxc5 Rg2+ 38. Kf1 Rc2) 31. Bf4 {[%emt 0:00:41]} (31. Rf4 $142 Qd6 32. Raf1) 31... Qh7 {[%emt 0:01:01]} 32. Bxh6 {[%emt 0:00:30] White mates.} Qe4 {[%emt 0:02:09]} 33. Rf8+ {[%emt 0:00:11]} Ke7 {[%emt 0:00:03]} 34. Qxc5+ {[%emt 0:00:04] Weighted Error Value: White=0.48/Black=0.98} 1-0

[Event "Saint Louis Norm Congress-IM 2022"]
[Site "Saint Louis"]
[Date "2022.05.23"]
[Round "8.5"]
[White "Marek, Matyas"]
[Black "Grabinsky, Aaron"]
[Result "0-1"]
[ECO "C01"]
[WhiteElo "2363"]
[BlackElo "2401"]
[Annotator "TA"]
[PlyCount "110"]
[EventDate "2022.05.20"]
[EventType "tourn"]
[EventCountry "USA"]
[SourceTitle "playchess.com"]
[Source "ChessBase"]
[SourceQuality "1"]
[TimeControl "5400+30"]

{[%evp 9,110,16,23,12,22,26,22,19,18,18,27,14,75,50,48,23,26,32,28,40,45,49,81,87,76,64,54,61,66,27,29,23,25,17,54,54,76,91,85,29,112,65,82,88,80,62,37,35,33,9,8,12,12,2,6,0,0,0,20,0,0,0,0,0,0,0,0,0,0,0,0,-17,0,-125,-123,-615,-590,-602,-585,-754,-758,-730,-664,-747,-680,-666,-617,-584,-520,-485,-430,-5089,-3210,-5589,-722,-722,-704,-704,-699,-677,-669,-613,-602]} 1. e4 {[%emt 0:00:04]} e6 {[%emt 0:00:10]} 2. d4 {[%emt 0:00:03]} d5 {[%emt 0:00:05]} 3. Bd3 {[%emt 0:00:03]} c5 {[%emt 0:00:48]} 4. exd5 {[%emt 0:00:06]} exd5 {[%emt 0:00:06]} 5. Nf3 {[%emt 0:00:07]} c4 {[%emt 0:01:36]} 6. Be2 {[%emt 0:00:02] C01: French: Exchange Variation.} Nf6 {[%emt 0:00:12]} 7. O-O {[%emt 0:00:05]} Be7 {[%emt 0:00:55]} 8. b3 {[%emt 0:00:05] The position is equal.} cxb3 {[%emt 0:00:17]} 9. axb3 {[%emt 0:00:01]} O-O {[%emt 0:00:38]} 10. c4 {[%emt 0:00:05]} b6 {[%emt 0:01:14]} (10... Bf5 $11 {keeps the balance.}) 11. Nc3 {[%emt 0:02:48] [#]} Bb7 $146 {[%emt 0:03:15]} ({Predecessor:} 11... Bg4 12. Ne5 Bxe2 13. Nxe2 Qc7 14. Ng3 g6 15. Bf4 Bd6 16. Qf3 Re8 17. cxd5 Nbd7 18. Rac1 Qb7 19. Nxd7 {1-0 (19) Zaritovskaja,M (2040)-Ruzic,P (2049) Terme Catez 2021}) 12. Bf4 {[%emt 0:01:49]} Nc6 {[%emt 0:01:32]} 13. Ne5 {[%emt 0:05:21]} dxc4 {[%emt 0:02:48]} 14. Bf3 {[%emt 0:06:11]} Qc8 {[%emt 0:06:21]} 15. bxc4 {[%emt 0:06:14]} (15. Nxc4 {keeps more tension.} Na5 16. Nxa5 bxa5 17. Be5) 15... Nxe5 {[%emt 0:07:38]} 16. dxe5 {[%emt 0:02:18]} ({Much weaker is} 16. Bxe5 $6 Bxf3 17. Qxf3 Qxc4 $15) 16... Bxf3 {[%emt 0:01:38]} 17. Qxf3 {[%emt 0:00:01]} ({Much worse is} 17. gxf3 Bb4 18. Nd5 (18. exf6 $2 Bxc3 19. Rb1 Bxf6 $17) 18... Nxd5 19. cxd5 f6 $11) 17... Nd7 {[%emt 0:00:20]} 18. Nd5 {[%emt 0:00:54]} Bd8 {[%emt 0:02:38]} 19. Rfd1 {[%emt 0:19:51]} Re8 {[%emt 0:01:42]} 20. Qg3 {[%emt 0:03:08]} Kh8 {[%emt 0:03:23]} 21. Rac1 {[%emt 0:03:28]} Nf8 {[%emt 0:05:11]} 22. Be3 {[%emt 0:02:46]} Qf5 {[%emt 0:08:18]} 23. f4 {[%emt 0:05:23]} Rc8 {[%emt 0:01:43]} 24. Qf3 {[%emt 0:04:03]} (24. Ra1 $16) 24... Ng6 {[%emt 0:02:37]} (24... f6 $1 $11) 25. Bd4 {[%emt 0:03:09]} ({White should try} 25. Bf2 $16) 25... f6 {[%emt 0:13:07] [#]} 26. exf6 {[%emt 0:08:33]} Bxf6 {[%emt 0:01:01]} 27. Nxf6 {[%emt 0:02:46]} gxf6 {[%emt 0:00:38]} 28. g3 {[%emt 0:00:08]} Kg7 {[%emt 0:02:48]} 29. Bb2 {[%emt 0:02:49] Threatening Rd5.} Rcd8 {[%emt 0:08:58]} 30. Rd5 {[%emt 0:02:34]} Rxd5 {[%emt 0:01:14]} 31. Qxd5 {[%emt 0:00:43]} Ne7 {[%emt 0:02:16]} 32. Qf3 {[%emt 0:03:20]} Rd8 {[%emt 0:01:29]} 33. Re1 {[%emt 0:02:28]} Rd7 {[%emt 0:03:56]} 34. Ba3 {[%emt 0:04:16]} Ng6 {[%emt 0:01:16]} 35. Rd1 {[%emt 0:04:56]} Rxd1+ {[%emt 0:02:08]} 36. Qxd1 $11 {[%emt 0:00:04][%mdl 4096] Endgame KQB-KQN} Qe6 {[%emt 0:00:10] [#] Hoping for ...Qe3+.} 37. Qd3 {[%emt 0:00:59] Against Qe3+} Nh8 {[%emt 0:01:24]} 38. Kf2 {[%emt 0:02:28]} Nf7 {[%emt 0:00:15]} 39. Qd4 {[%emt 0:01:16]} Nh6 {[%emt 0:00:26] White must now prevent ...Ng4+.} 40. Kf3 {[%emt 0:03:28]} Qh3 {[%emt 0:03:30]} 41. Bb2 {[%emt 0:01:16]} (41. Qd3 $11) 41... Qf1+ {[%emt 0:01:46]} 42. Ke4 $2 {[%emt 0:00:17][%mdl 8192] This move loses the game for White.} (42. Qf2 $17 Qxc4 43. Qe2 Qxe2+ 44. Kxe2) 42... Qe2+ $19 {[%emt 0:01:52] Black is clearly winning.} 43. Kd5 {[%emt 0:00:06]} Qg2+ {[%emt 0:01:11]} 44. Ke6 {[%emt 0:01:03]} Qc6+ {[%emt 0:00:07]} 45. Qd6 {[%emt 0:00:07]} Qxc4+ {[%emt 0:00:12]} 46. Qd5 {[%emt 0:01:09]} Qe2+ {[%emt 0:00:18]} 47. Be5 {[%emt 0:00:07] Qd7+ would kill now.} Qg4+ {[%emt 0:01:23]} 48. Kd6 {[%emt 0:00:43]} Nf5+ {[%emt 0:01:21]} 49. Kc7 {[%emt 0:00:39]} fxe5 {[%emt 0:02:32]} 50. fxe5 {[%emt 0:00:19]} (50. Qxe5+ $142 Kh6 51. Kc6) 50... Ne7 {[%emt 0:00:34] ( -> ...Qc8+)} 51. Qb5 {[%emt 0:00:47]} Qc8+ {[%emt 0:00:32]} 52. Kd6 {[%emt 0:00:04]} Nf5+ {[%emt 0:00:27]} 53. Kd5 {[%emt 0:00:07]} Qb7+ {[%emt 0:02:36]} 54. Kc4 {[%emt 0:00:09]} Qe4+ {[%emt 0:00:04]} 55. Kc3 {[%emt 0:00:07]} Ne7 {[%emt 0:00:03] Weighted Error Value: White=0.58/Black=0.09 (flawless)} 0-1

[Event "Saint Louis Norm Congress-IM 2022"]
[Site "Saint Louis"]
[Date "2022.05.24"]
[Round "9.1"]
[White "Grabinsky, Aaron"]
[Black "Posthuma, Joshua"]
[Result "1/2-1/2"]
[ECO "B11"]
[WhiteElo "2401"]
[BlackElo "2405"]
[Annotator "TA"]
[PlyCount "135"]
[EventDate "2022.05.20"]
[EventType "tourn"]
[EventCountry "USA"]
[SourceTitle "playchess.com"]
[Source "ChessBase"]
[SourceQuality "1"]
[TimeControl "5400+30"]

{[%evp 10,135,19,20,34,13,29,21,33,0,0,0,0,0,0,0,0,-14,0,0,0,0,0,-27,0,0,0,0,0,0,5,0,0,0,0,-6,19,-18,-7,-29,-21,-37,-35,-25,-9,-11,-6,-41,0,0,29,18,18,20,16,13,51,6,8,2,1,1,0,8,8,0,4,0,0,0,0,0,8,0,0,-2,0,-33,-8,-20,0,0,0,0,0,0,0,0,0,0,0,0,0,0,0,0,0,0,0,0,0,0,0,0,0,0,0,0,0,0,0,0,0,0,0,0,0,0,0,0,0,0,81,0,0,0,0,0]} 1. e4 {[%emt 0:00:09]} c6 {[%emt 0:00:20]} 2. Nf3 {[%emt 0:00:09]} d5 {[%emt 0:00:03]} 3. Nc3 {[%emt 0:00:07]} dxe4 {[%emt 0:00:23]} 4. Nxe4 {[%emt 0:00:10]} Nf6 {[%emt 0:00:04]} 5. Qe2 {[%emt 0:00:08]} Nxe4 {[%emt 0:00:11]} 6. Qxe4 {[%emt 0:00:08]} Be6 {[%emt 0:00:37] B11: Caro-Kann: Two Knights Variation.} 7. c4 {[%emt 0:02:01]} Nd7 {[%emt 0:03:09]} 8. d4 {[%emt 0:01:09]} Nf6 {[%emt 0:01:40]} 9. Qh4 {[%emt 0:02:24]} Bf5 {[%emt 0:06:23]} 10. Be2 {[%emt 0:03:16]} e6 {[%emt 0:00:26]} 11. O-O {[%emt 0:00:35]} Be7 {[%emt 0:02:53]} 12. Qf4 {[%emt 0:00:52]} O-O {[%emt 0:03:09] [#]} 13. h3 $146 {[%emt 0:05:36]} ({Predecessor:} 13. b3 a5 14. Bb2 a4 15. Ne5 Nd7 16. Rfd1 Nxe5 17. Qxe5 Bf6 18. Qe3 Qb6 19. Ba3 {0-1 (28) Radeva,V (2274)-Dudin,G (2395) Tornelo INT 2020}) 13... a5 {[%emt 0:09:48]} 14. Rd1 {[%emt 0:03:34]} Bc2 {[%emt 0:04:20]} 15. Re1 {[%emt 0:00:56]} Qb6 {[%emt 0:04:29]} 16. Qe3 {[%emt 0:11:27]} Rfd8 {[%emt 0:02:20]} (16... c5 $5 {[%cal Rc5d4]}) 17. Bd3 {[%emt 0:00:50]} Bxd3 {[%emt 0:01:09]} 18. Qxd3 {[%emt 0:02:26]} a4 {[%emt 0:04:50]} 19. Qc2 {[%emt 0:03:19]} Qa6 {[%emt 0:02:24]} 20. Be3 {[%emt 0:02:46]} b5 {[%emt 0:05:13]} 21. Rac1 {[%emt 0:05:10]} bxc4 {[%emt 0:05:21]} 22. Qxc4 {[%emt 0:01:03]} Rdb8 {[%emt 0:00:23]} 23. Qc2 {[%emt 0:05:49]} ({But not} 23. Qxc6 Qxc6 24. Rxc6 Rxb2 $15) 23... Nd5 {[%emt 0:02:54][%cal Bf6d5,Bd5e7,Be7f5,Bf5d6,Bd6c4][%mdl 32]} 24. a3 {[%emt 0:00:05] Prevents Nb4.} (24. Ne5 {keeps more tension.} Bb4 25. Bd2 Bd6 26. Nc4) 24... Rb5 {[%emt 0:09:56]} 25. Rcd1 {[%emt 0:10:55]} Qb7 {[%emt 0:11:33]} 26. Bc1 {[%emt 0:01:08]} Bf6 {[%emt 0:02:18]} 27. Ne5 {[%emt 0:01:15]} Ne7 {[%emt 0:01:52]} 28. Re4 {[%emt 0:06:24]} Nf5 {[%emt 0:03:44]} (28... Rd5 $5 {[%cal Rc6c5]}) 29. Qxc6 {[%emt 0:05:58]} Rc8 {[%emt 0:00:41]} 30. Qxb7 {[%emt 0:00:53]} Rxb7 {[%emt 0:00:01]} 31. g4 {[%emt 0:02:28]} Nd6 {[%emt 0:04:05]} 32. Re2 {[%emt 0:01:58]} h6 {[%emt 0:02:31]} 33. Kf1 {[%emt 0:01:04]} Bxe5 {[%emt 0:00:48]} 34. Rxe5 {[%emt 0:01:47]} Nc4 {[%emt 0:00:42]} 35. Rc5 {[%emt 0:02:37]} Rxc5 {[%emt 0:00:14]} 36. dxc5 $11 {[%emt 0:00:08][%mdl 4096] [#] Endgame Hoping for Rd4. KRB-KRN} Rc7 $1 {[%emt 0:00:05]} 37. Rd3 {[%emt 0:04:14]} Rxc5 {[%emt 0:00:13]} 38. Rc3 {[%emt 0:00:02]} f5 {[%emt 0:02:45]} 39. gxf5 {[%emt 0:00:43]} exf5 {[%emt 0:00:04]} 40. Ke2 {[%emt 0:01:40]} g5 {[%emt 0:02:32]} 41. h4 {[%emt 0:06:42]} gxh4 {[%emt 0:00:38]} 42. Rh3 {[%emt 0:00:02]} Nxb2 {[%emt 0:01:47]} 43. Bxh6 {[%emt 0:00:29]} Rc2+ {[%emt 0:00:29]} 44. Kf1 {[%emt 0:00:36]} Nc4 {[%emt 0:00:28]} 45. Rxh4 {[%emt 0:00:43]} Kf7 {[%emt 0:00:48]} 46. Ke1 {[%emt 0:00:57]} Nxa3 {[%emt 0:00:30]} 47. Rxa4 {[%emt 0:00:09]} Nb5 {[%emt 0:01:08]} 48. Ra6 {[%emt 0:00:50]} Nd4 {[%emt 0:00:31]} 49. Be3 {[%emt 0:01:25]} Ne6 {[%emt 0:00:18]} 50. Kf1 {[%emt 0:00:26]} f4 {[%emt 0:00:32]} 51. Ba7 {[%emt 0:00:20]} Rc8 {[%emt 0:01:29]} 52. Rd6 {[%emt 0:00:47]} Rd8 {[%emt 0:00:17]} 53. Rc6 {[%emt 0:00:17]} Ra8 {[%emt 0:00:21]} 54. Bb6 {[%emt 0:00:36]} Ra6 {[%emt 0:00:37]} 55. Kg2 {[%emt 0:00:11]} Ng5 {[%emt 0:00:33]} 56. Rc7+ {[%emt 0:00:55]} Kg6 {[%emt 0:00:19]} 57. Rb7 {[%emt 0:00:50]} Ra2 {[%emt 0:00:23]} 58. Bd4 {[%emt 0:00:26]} Kf5 {[%emt 0:00:21]} 59. Rb8 {[%emt 0:01:13]} Rd2 {[%emt 0:00:50]} 60. Rb4 {[%emt 0:02:01]} Ne4 {[%emt 0:00:40]} 61. Ba7 {[%emt 0:00:54]} Ra2 {[%emt 0:00:15]} 62. Rb7 {[%emt 0:00:31]} Ng5 {[%emt 0:00:29]} 63. Bb8 {[%emt 0:00:38]} f3+ {[%emt 0:00:38]} 64. Kg3 {[%emt 0:00:17]} Ne4+ {[%emt 0:00:15]} 65. Kxf3 {[%emt 0:00:11]} Rxf2+ {[%emt 0:00:35]} 66. Ke3 {[%emt 0:00:07]} Rc2 {[%emt 0:00:16]} 67. Re7 {[%emt 0:02:48]} Nf6 {[%emt 0:00:19]} 68. Kd3 {[%emt 0:00:02] Weighted Error Value: White=0.06 (flawless) /Black=0.05 (flawless)} 1/2-1/2